bitfinex/quotes_SOLUSD_20250424
["timestamp","ask_amount","ask_price","bid_price","bid_amount"]
[1745510081473,16.39755632,149.81,149.73,38.3202976]
[1745510081474,6.81748192,149.81,149.77,9.5800744]
[1745510082384,6.81748192,149.81,149.74,6.67824228]
[1745510082385,16.39755632,149.81,149.74,6.67824228]
[1745510082587,16.39755632,149.81,149.76,16.25738066]
[1745510082999,6.81748192,149.81,149.77,9.5800744]
[1745510083594,9.5800744,149.8,149.75,9.5800744]
[1745510083995,16.39755632,149.81,149.76,9.5800744]
[1745510084296,6.81748192,149.81,149.77,9.5800744]
[1745510084486,9.72223597,149.78,149.73,6.6786883]
[1745510084689,16.3989277,149.78,149.73,16.2587627]
[1745510084878,16.3989277,149.78,149.73,6.6786883]
[1745510085406,16.3989277,149.78,149.72,17.90709815]
[1745510085720,16.3989277,149.78,149.73,9.5800744]
[1745510086606,0.14216157,149.76,149.72,11.2281744]
[1745510086780,9.5800744,149.75,149.71,0.063]
[1745510087990,0.14216157,149.75,149.71,16.32261604]
[1745510088178,0.14216157,149.75,149.72,9.5800744]
[1745510088671,0.14216157,149.75,149.72,16.2590231]
[1745510088877,6.70442324,149.83,149.75,1.5213]
[1745510089109,6.70442324,149.83,149.8,9.5800744]
[1745510089309,0.03,149.83,149.8,9.5800744]
[1745510089802,0.03,149.83,149.81,2.49614838]
[1745510090191,0.03,149.83,149.82,4.99201692]
[1745510090383,0.17216157,149.83,149.82,7.4881653]
[1745510090798,0.03,149.83,149.82,7.4881653]
[1745510091100,9.75223597,149.83,149.82,7.4881653]
[1745510091503,16.42646676,149.83,149.82,7.4881653]
[1745510092004,16.42646676,149.83,149.82,2.49614838]
[1745510092785,9.75223597,149.83,149.82,2.49614838]
[1745510093200,0.17216157,149.83,149.82,2.49614838]
[1745510094311,0.03,149.83,149.82,9.17082465]
[1745510095083,0.03,149.83,149.81,9.5800744]
[1745510095386,0.03,149.83,149.81,6.67492714]
[1745510096702,0.03,149.83,149.8,16.25558188]
[1745510097004,0.03,149.83,149.8,6.67550748]
[1745510097197,0.03,149.83,149.8,16.25558188]
[1745510097402,0.03,149.83,149.8,9.5800744]
[1745510097601,0.03,149.83,149.8,16.25555021]
[1745510099110,0.03,149.83,149.8,6.67547581]
[1745510099297,0.03,149.83,149.8,16.25555021]
[1745510101308,0.03,149.83,149.81,9.5800744]
[1745510102105,0.03,149.83,149.8,16.25555021]
[1745510102793,0.03,149.83,149.81,9.5800744]
[1745510103336,0.03,149.83,149.82,9.5800744]
[1745510105632,0.03,149.83,149.82,16.25475067]
[1745510106333,0.03,149.83,149.81,9.5800744]
[1745510108532,0.03,149.83,149.8,16.25535582]
[1745510109335,0.03,149.83,149.8,9.5800744]
[1745510109504,0.14216157,149.82,149.78,9.5800744]
[1745510110410,0.14216157,149.82,149.8,9.5800744]
[1745510111495,6.84674074,149.83,149.79,9.5800744]
[1745510111728,0.14216157,149.81,149.77,9.5800744]
[1745510112410,9.72223597,149.81,149.76,9.5800744]
[1745510112607,0.14216157,149.78,149.74,9.5800744]
[1745510112817,9.72223597,149.78,149.74,9.5800744]
[1745510113025,9.72223597,149.78,149.73,9.5800744]
[1745510113415,9.72223597,149.78,149.73,16.2587627]
[1745510113609,16.39870647,149.78,149.73,16.2587627]
[1745510113909,16.39870647,149.78,149.74,9.5800744]
[1745510114510,0.14216157,149.78,149.75,9.5800744]
[1745510115731,0.14216157,149.78,149.75,16.25769774]
[1745510115914,0.14216157,149.79,149.76,9.5800744]
[1745510116420,9.72223597,149.79,149.75,9.5800744]
[1745510116737,9.72223597,149.79,149.74,16.25815443]
[1745510116930,9.5800744,149.78,149.74,16.25815443]
[1745510117110,9.72223597,149.79,149.74,16.25815443]
[1745510117936,16.39825012,149.79,149.74,16.25815443]
[1745510119314,9.5800744,149.78,149.74,9.5800744]
[1745510119936,0.14216157,149.77,149.74,9.5800744]
[1745510120140,0.14216157,149.77,149.73,9.5800744]
[1745510121137,0.14216157,149.77,149.74,9.5800744]
[1745510121513,0.14216157,149.77,149.74,16.25826634]
[1745510121709,16.25503494,149.82,149.76,9.5800744]
[1745510122022,0.14216157,149.81,149.78,9.5800744]
[1745510122235,0.14216157,149.81,149.77,9.5800744]
[1745510122538,0.14216157,149.79,149.75,9.5800744]
[1745510123120,9.72223597,149.79,149.74,9.5800744]
[1745510123529,16.39840209,149.79,149.74,16.25822125]
[1745510124209,16.39840209,149.79,149.74,9.5800744]
[1745510124619,0.14216157,149.79,149.75,9.5800744]
[1745510125029,9.72223597,149.79,149.74,9.5800744]
[1745510125236,9.5800744,149.78,149.73,9.5800744]
[1745510125631,16.25690738,149.78,149.73,9.5800744]
[1745510126245,16.25690738,149.78,149.73,16.2586996]
[1745510128118,6.81913124,149.77,149.73,9.5800744]
[1745510128325,16.39920564,149.77,149.73,9.5800744]
[1745510129436,16.39920564,149.77,149.73,16.25872917]
[1745510129617,16.3992281,149.77,149.73,9.5800744]
[1745510131122,0.14216157,149.77,149.73,16.25867296]
[1745510132543,9.72223597,149.77,149.73,16.25867296]
[1745510132849,16.39919306,149.77,149.73,16.25867296]
[1745510133052,16.39919306,149.77,149.73,9.5800744]
[1745510133728,16.39919306,149.77,149.73,16.25873522]
[1745510134148,0.14216157,149.77,149.74,9.5800744]
[1745510134459,0.14216157,149.77,149.74,16.25802715]
[1745510134624,0.14216157,149.77,149.74,6.67795275]
[1745510134952,0.14216157,149.77,149.74,16.25802715]
[1745510135116,0.14216157,149.77,149.76,9.5800744]
[1745510135516,34.90497193,149.81,149.76,9.5800744]
[1745510135747,14.12,149.82,149.79,9.5800744]
[1745510136048,0.03,149.83,149.81,9.5800744]
[1745510136241,0.03,149.83,149.82,9.5800744]
[1745510136447,0.03,149.83,149.82,16.25475067]
[1745510144361,0.03,149.83,149.82,6.67467627]
[1745510144534,0.03,149.83,149.82,16.25475067]
[1745510147262,0.03,149.86,149.82,32.94144136]
[1745510147438,0.03,149.86,149.85,9.5800744]
[1745510147646,0.03,149.86,149.85,16.2534144]
[1745510150146,0.03,149.87,149.85,60.90306326]
[1745510150336,0.03,149.87,149.86,9.5800744]
[1745510151367,0.03,149.87,149.86,16.2529691]
[1745510151962,0.03,149.87,149.82,20.146]
[1745510152157,0.03,149.87,149.86,9.5800744]
[1745510153457,0.03,149.87,149.86,16.2529691]
[1745510157062,0.03,149.87,149.86,56.2043667]
[1745510157574,1e-08,149.87,149.86,74.85401556]
[1745510158373,1e-08,149.87,149.86,17.8840691]
[1745510162573,1e-08,149.87,149.86,74.85401556]
[1745510162741,0.03,149.9,149.88,44.64964886]
[1745510162939,0.03,149.9,149.89,9.5800744]
[1745510163742,0.03,149.9,149.89,28.22972326]
[1745510164139,0.03,149.92,149.9,18.64964886]
[1745510164471,0.03,149.92,149.91,9.5800744]
[1745510164643,0.03,149.92,149.91,16.25074346]
[1745510165560,0.03,149.92,149.91,9.5800744]
[1745510165757,0.03,149.92,149.89,6.67135839]
[1745510165956,9.6100744,149.92,149.87,6.67244945]
[1745510166151,0.03,149.92,149.88,9.5800744]
[1745510166673,0.03,149.92,149.88,16.25196318]
[1745510167378,0.03,149.92,149.88,9.5800744]
[1745510167953,0.03,149.92,149.88,16.25197236]
[1745510168151,0.03,149.92,149.89,9.5800744]
[1745510168764,0.03,149.92,149.9,9.5800744]
[1745510169485,0.03,149.92,149.89,9.5800744]
[1745510170648,0.03,149.92,149.9,9.5800744]
[1745510170844,0.03,149.92,149.9,16.25086111]
[1745510171045,0.03,149.92,149.9,6.67078671]
[1745510171250,0.03,149.92,149.83,16.68487149]
[1745510171251,0.14216157,149.9,149.83,16.68487149]
[1745510171545,9.5800744,149.89,149.84,16.25385977]
[1745510171978,9.5800744,149.89,149.85,9.5800744]
[1745510173181,0.14216157,149.9,149.86,9.5800744]
[1745510173355,0.14216157,149.9,149.86,14.95395141]
[1745510173887,21.62463665,149.91,149.86,14.95395141]
[1745510174757,14.95395141,149.9,149.86,14.95395141]
[1745510174956,14.95395141,149.87,149.83,6.67423079]
[1745510175678,0.14216157,149.89,149.81,6.67512182]
[1745510175986,0.14216157,149.89,149.86,14.95395141]
[1745510176184,14.08,149.9,149.87,14.95395141]
[1745510176487,14.08,149.9,149.88,14.95395141]
[1745510176859,21.76701885,149.91,149.85,6.67334]
[1745510177086,0.14216157,149.91,149.88,14.95395141]
[1745510177263,0.14216157,149.91,149.85,6.67334]
[1745510177473,14.95395141,149.9,149.86,14.95395141]
[1745510178410,0.14216157,149.89,149.83,6.67407745]
[1745510178565,15.09611298,149.88,149.83,21.62802886]
[1745510178882,0.14216157,149.88,149.84,14.95395141]
[1745510179086,14.95395141,149.89,149.85,14.95395141]
[1745510179669,21.62560353,149.89,149.85,14.95395141]
[1745510180195,14.95395141,149.89,149.85,14.95395141]
[1745510181189,21.62551148,149.89,149.85,14.95395141]
[1745510181490,15.09611298,149.88,149.83,21.62800031]
[1745510181679,14.95395141,149.86,149.82,14.95395141]
[1745510182375,14.95395141,149.85,149.8,6.67556742]
[1745510182581,14.95395141,149.85,149.8,21.62951883]
[1745510183079,14.95395141,149.85,149.81,14.95395141]
[1745510183288,15.09611298,149.86,149.81,14.95395141]
[1745510184202,21.76919734,149.86,149.81,14.95395141]
[1745510184674,21.76919734,149.86,149.81,21.62905839]
[1745510185094,14.95395141,149.85,149.81,21.62905839]
[1745510185301,14.95395141,149.83,149.79,6.73885016]
[1745510185511,14.95395141,149.84,149.79,21.69280157]
[1745510185795,14.95395141,149.84,149.8,14.95395141]
[1745510186163,0.14216157,149.84,149.8,14.95395141]
[1745510186365,0.14216157,149.84,149.8,21.62908592]
[1745510187000,15.09611298,149.84,149.8,21.62908592]
[1745510187298,14.95395141,149.83,149.79,15.01695141]
[1745510187591,14.95395141,149.83,149.79,21.69287157]
[1745510187794,14.95395141,149.83,149.79,0.063]
[1745510187795,0.14216157,149.82,149.79,0.063]
[1745510188295,15.09611298,149.82,149.79,0.063]
[1745510189184,14.95395141,149.81,149.79,0.063]
[1745510189792,14.95395141,149.8,149.79,0.063]
[1745510190200,14.95395141,149.81,149.79,0.063]
[1745510190494,14.95395141,149.8,149.79,0.063]
[1745510191272,14.95395141,149.81,149.79,0.063]
[1745510191496,14.95395141,149.8,149.79,0.063]
[1745510191687,15.09611298,149.8,149.79,0.063]
[1745510192303,21.7716804,149.8,149.79,0.063]
[1745510192674,40.42132926,149.8,149.79,0.063]
[1745510198308,55.37528067,149.8,149.79,0.063]
[1745510198485,81.37528067,149.8,149.79,0.063]
[1745510198803,59.74576184,149.77,149.76,0.063]
[1745510198972,73.82576184,149.77,149.76,0.063]
[1745510200509,80.50266642,149.77,149.76,0.063]
[1745510202618,18.79181043,149.76,149.75,0.063]
[1745510202781,48.69971325,149.76,149.75,0.063]
[1745510202982,0.14216157,149.72,149.71,0.063]
[1745510203183,29.17611298,149.72,149.71,0.063]
[1745510203415,47.82576184,149.72,149.71,0.063]
[1745510203589,54.50489622,149.72,149.71,0.063]
[1745510205311,44.79181043,149.71,149.7,0.063]
[1745510205495,66.03486184,149.71,149.7,0.063]
[1745510205809,72.71444236,149.71,149.7,0.063]
[1745510205989,44.79181043,149.69,149.68,0.063]
[1745510206305,59.74576184,149.69,149.68,0.063]
[1745510206515,59.74576184,149.69,149.66,0.063]
[1745510206516,0.14216157,149.68,149.66,0.063]
[1745510206691,74.69971325,149.68,149.66,0.063]
[1745510206883,59.74576184,149.68,149.66,0.063]
[1745510207311,18.79181043,149.67,149.66,0.063]
[1745510207484,62.79971325,149.67,149.66,0.063]
[1745510207899,54.52712751,149.67,149.66,0.063]
[1745510208105,80.52712751,149.67,149.66,0.063]
[1745510208700,55.19611298,149.67,149.66,0.063]
[1745510208932,29.19611298,149.67,149.66,0.063]
[1745510209412,14.24216157,149.67,149.66,0.063]
[1745510209717,14.1,149.67,149.66,0.063]
[1745510209896,14.24216157,149.67,149.66,0.063]
[1745510210093,14.1,149.67,149.66,0.063]
[1745510210309,14.24216157,149.67,149.66,0.063]
[1745510211023,54.52712751,149.67,149.66,0.063]
[1745510211318,80.52712751,149.67,149.66,0.063]
[1745510215431,69.48107892,149.67,149.66,0.063]
[1745510215926,54.52712751,149.67,149.66,0.063]
[1745510218531,69.48107892,149.67,149.66,1e-08]
[1745510218934,74.83521398,149.67,149.66,1e-08]
[1745510220214,69.48107892,149.67,149.66,1e-08]
[1745510221042,69.48107892,149.67,149.62,0.063]
[1745510221043,0.14216157,149.63,149.62,0.063]
[1745510221227,33.74576184,149.63,149.62,0.063]
[1745510222233,40.42891361,149.63,149.61,0.063]
[1745510222433,40.42891361,149.63,149.6,1e-08]
[1745510222434,0.14216157,149.61,149.6,1e-08]
[1745510222739,18.79181043,149.6,149.56,0.063]
[1745510222909,48.69971325,149.6,149.56,0.063]
[1745510223841,18.79181043,149.59,149.56,0.063]
[1745510224016,48.69971325,149.59,149.56,0.063]
[1745510224215,51.47764315,149.57,149.53,0.063]
[1745510224428,59.74576184,149.54,149.53,0.063]
[1745510226335,66.43293584,149.54,149.53,0.063]
[1745510231545,81.38688725,149.54,149.53,0.063]
[1745510232244,18.79181043,149.53,149.52,0.063]
[1745510232448,48.69971325,149.53,149.52,0.063]
[1745510232623,18.64964886,149.46,149.45,0.063]
[1745510232949,47.84576184,149.46,149.45,0.063]
[1745510233820,29.19611298,149.46,149.45,0.063]
[1745510234021,55.19611298,149.46,149.45,0.063]
[1745510234539,0.14216157,149.46,149.45,0.063]
[1745510234743,15.09611298,149.46,149.45,0.063]
[1745510235926,0.14216157,149.46,149.45,0.063]
[1745510236835,0.14216157,149.47,149.45,0.063]
[1745510237347,15.09611298,149.47,149.45,0.063]
[1745510238046,29.05395141,149.46,149.45,0.063]
[1745510239256,47.84576184,149.46,149.45,0.063]
[1745510239831,54.53651521,149.46,149.45,0.063]
[1745510243649,14.24216157,149.46,149.45,0.063]
[1745510244460,16.72366848,149.49,149.45,0.063]
[1745510244461,14.1,149.49,149.45,0.063]
[1745510244767,14.95395141,149.48,149.45,0.063]
[1745510245550,20.78941066,149.49,149.45,0.063]
[1745510245551,14.1,149.49,149.45,15.01695141]
[1745510245740,14.1,149.49,149.46,14.95395141]
[1745510245939,40.29228637,149.51,149.48,14.95395141]
[1745510245940,14.1,149.51,149.48,14.95395141]
[1745510246248,14.1,149.51,149.45,0.063]
[1745510246444,14.95395141,149.48,149.45,0.063]
[1745510246969,0.14216157,149.49,149.45,15.01695141]
[1745510247739,15.09611298,149.49,149.45,21.70811101]
[1745510248767,0.14216157,149.49,149.45,21.70811101]
[1745510249063,0.14216157,149.49,149.46,14.95395141]
[1745510249562,0.14216157,149.5,149.47,14.95395141]
[1745510250061,14.1,149.51,149.48,14.95395141]
[1745510250275,14.1,149.51,149.49,14.95395141]
[1745510250559,14.1,149.51,149.48,14.95395141]
[1745510251444,0.14216157,149.5,149.46,14.95395141]
[1745510252343,0.14216157,149.5,149.47,14.95395141]
[1745510252862,0.14216157,149.5,149.47,21.64410955]
[1745510253568,6.8311438,149.5,149.47,14.95395141]
[1745510253777,0.14216157,149.5,149.47,14.95395141]
[1745510253942,0.14216157,149.5,149.47,21.64421706]
[1745510254579,6.83112697,149.5,149.45,0.063]
[1745510254747,6.83112697,149.5,149.46,14.95395141]
[1745510255253,6.83126323,149.5,149.45,6.75402052]
[1745510255453,21.78521464,149.5,149.45,21.70797193]
[1745510255951,21.78521464,149.5,149.46,14.95395141]
[1745510256763,0.14216157,149.5,149.46,14.95395141]
[1745510256966,0.14216157,149.5,149.47,14.95395141]
[1745510257264,0.14216157,149.5,149.48,14.95395141]
[1745510257464,0.14216157,149.5,149.47,14.95395141]
[1745510257846,6.83113935,149.5,149.46,14.95395141]
[1745510258649,21.78509076,149.5,149.46,14.95395141]
[1745510259048,21.6183445,149.5,149.46,14.95395141]
[1745510259258,14.95395141,149.49,149.45,0.063]
[1745510260581,6.68916311,149.5,149.46,14.95395141]
[1745510261160,0.14216157,149.49,149.46,14.95395141]
[1745510261766,14.1,149.51,149.48,14.95395141]
[1745510261968,14.1,149.51,149.49,14.95395141]
[1745510265079,14.1,149.51,149.5,14.95395141]
[1745510265258,14.1,149.51,149.45,0.063]
[1745510265579,35.74247561,149.51,149.45,6.7539882]
[1745510265757,35.74247561,149.51,149.46,14.95395141]
[1745510266656,35.74247561,149.51,149.47,14.95395141]
[1745510266977,14.95395141,149.5,149.45,6.7539882]
[1745510267168,20.7885242,149.51,149.46,14.95395141]
[1745510267480,15.09611298,149.5,149.46,14.95395141]
[1745510268182,0.14216157,149.48,149.45,15.01695141]
[1745510268359,15.09611298,149.48,149.45,0.063]
[1745510268558,0.14216157,149.48,149.45,0.063]
[1745510269283,6.83217915,149.48,149.45,0.063]
[1745510269580,0.14216157,149.48,149.45,15.01695141]
[1745510270382,6.83207337,149.48,149.45,0.063]
[1745510270558,6.83207337,149.48,149.45,15.01695141]
[1745510270966,6.83207337,149.48,149.45,0.063]
[1745510271684,0.14216157,149.48,149.45,15.01695141]
[1745510272381,6.83210424,149.48,149.45,15.01695141]
[1745510273273,6.83210424,149.48,149.45,0.063]
[1745510273499,21.78605565,149.48,149.45,0.063]
[1745510273681,0.14216157,149.46,149.45,0.063]
[1745510274388,33.74576184,149.46,149.45,0.063]
[1745510274561,47.84576184,149.46,149.45,0.063]
[1745510275780,54.53651521,149.46,149.45,0.063]
[1745510275988,39.5825638,149.46,149.45,0.063]
[1745510276186,54.53651521,149.46,149.45,0.063]
[1745510279689,49.21259421,149.46,149.45,0.063]
[1745510281384,75.21259421,149.46,149.45,0.063]
[1745510281571,87.73271585,149.46,149.45,1e-08]
[1745510281776,94.18181585,149.46,149.45,1e-08]
[1745510282285,44.64964886,149.43,149.42,0.063]
[1745510282595,54.42184084,149.43,149.42,1e-08]
[1745510283263,61.11393747,149.43,149.42,1e-08]
[1745510283664,18.79181043,149.42,149.4,0.063]
[1745510283882,73.93092402,149.41,149.4,0.063]
[1745510284102,18.79181043,149.4,149.39,0.063]
[1745510284389,18.79181043,149.4,149.29,8.25974866]
[1745510284390,0.14216157,149.33,149.29,1.5617]
[1745510284576,0.14216157,149.33,149.3,15.12211359]
[1745510285180,14.08,149.34,149.31,15.05911359]
[1745510285564,14.08,149.34,149.3,21.82001271]
[1745510285889,14.08,149.34,149.31,15.05911359]
[1745510287570,14.08,149.34,149.31,21.75655412]
[1745510287770,14.08,149.34,149.31,15.05911359]
[1745510287987,14.08,149.34,149.32,15.05911359]
[1745510288286,0.14216157,149.36,149.33,15.05911359]
[1745510289598,14.08,149.37,149.34,21.75524322]
[1745510290093,0.14216157,149.36,149.33,6.69641266]
[1745510291199,0.14216157,149.36,149.33,21.75552625]
[1745510292769,0.14216157,149.36,149.33,6.69641266]
[1745510292970,15.20127516,149.36,149.32,6.69685166]
[1745510293303,15.05911359,149.35,149.31,6.69735643]
[1745510294167,15.05911359,149.35,149.31,21.75647002]
[1745510294378,0.14216157,149.34,149.3,6.7607797]
[1745510294589,0.14216157,149.34,149.3,21.81989329]
[1745510295081,0.14216157,149.34,149.31,15.05911359]
[1745510295484,0.14216157,149.34,149.3,21.81989329]
[1745510297091,0.14216157,149.34,149.31,6.69740426]
[1745510297284,0.14216157,149.34,149.3,21.81989635]
[1745510297798,6.83830575,149.34,149.3,0.063]
[1745510297978,0.14216157,149.32,149.3,0.063]
[1745510298780,0.14216157,149.32,149.3,21.81998529]
[1745510299094,0.14216157,149.32,149.3,15.12211359]
[1745510299298,0.14216157,149.32,149.3,0.063]
[1745510299502,6.83921967,149.32,149.3,0.063]
[1745510299671,20.93921967,149.32,149.3,0.063]
[1745510299877,35.99833326,149.32,149.3,0.063]
[1745510300083,14.24216157,149.32,149.3,0.063]
[1745510300305,20.93931217,149.32,149.3,0.063]
[1745510300475,14.24216157,149.32,149.3,0.063]
[1745510302997,14.1,149.32,149.3,15.12211359]
[1745510303482,14.1,149.32,149.31,15.05911359]
[1745510303894,0.14216157,149.34,149.31,15.05911359]
[1745510304401,0.14216157,149.34,149.31,21.75655364]
[1745510304602,0.14216157,149.34,149.32,15.05911359]
[1745510304973,14.1,149.35,149.32,15.05911359]
[1745510305307,14.1,149.35,149.33,15.05911359]
[1745510305499,14.1,149.35,149.33,9.63931695]
[1745510306507,0.14216157,149.36,149.33,16.33575701]
[1745510306715,14.1,149.37,149.34,9.63931695]
[1745510306886,14.1,149.37,149.35,9.63931695]
[1745510307507,14.1,149.37,149.34,9.63931695]
[1745510307891,14.1,149.37,149.35,9.63931695]
[1745510308101,30.55558443,149.39,149.35,9.63931695]
[1745510308400,14.22216157,149.39,149.35,16.33496718]
[1745510308906,14.22216157,149.39,149.36,9.63931695]
[1745510309099,0.14216157,149.39,149.36,9.63931695]
[1745510309300,6.83608324,149.39,149.35,9.63931695]
[1745510309711,6.83608324,149.39,149.35,16.33496343]
[1745510310913,16.47540019,149.39,149.35,9.63931695]
[1745510311087,16.47540019,149.39,149.34,16.33524665]
[1745510311483,16.47540019,149.39,149.35,9.63931695]
[1745510311984,6.83608324,149.39,149.35,9.63931695]
[1745510312308,16.47540019,149.39,149.35,9.63931695]
[1745510314214,16.47540019,149.39,149.35,16.33494595]
[1745510314391,9.78147852,149.39,149.35,16.33494595]
[1745510315086,14.11,149.4,149.36,9.63931695]
[1745510315288,14.11,149.4,149.38,9.63931695]
[1745510315788,0.03,149.4,149.39,9.63931695]
[1745510317515,0.03,149.4,149.38,16.33349278]
[1745510317683,0.03,149.4,149.38,6.69417583]
[1745510317887,0.03,149.4,149.36,9.63931695]
[1745510318304,9.66931695,149.4,149.36,9.63931695]
[1745510318499,0.14216157,149.39,149.35,16.33499823]
[1745510318792,9.63931695,149.38,149.34,9.63931695]
[1745510319101,14.22216157,149.37,149.33,11.27461695]
[1745510320015,14.22216157,149.37,149.34,9.63931695]
[1745510321516,14.22216157,149.37,149.34,16.33538485]
[1745510321733,14.22216157,149.37,149.34,9.63931695]
[1745510323117,14.22216157,149.37,149.35,9.63931695]
[1745510323990,14.08,149.37,149.35,9.63931695]
[1745510324222,14.08,149.37,149.36,9.63931695]
[1745510324599,0.03,149.4,149.36,9.63931695]
[1745510324927,0.03,149.4,149.37,9.63931695]
[1745510325896,6.72345073,149.4,149.37,9.63931695]
[1745510326202,16.36276768,149.4,149.35,16.33496417]
[1745510326511,9.63931695,149.37,149.33,11.27461695]
[1745510326719,9.63931695,149.37,149.33,1.6353]
[1745510327706,16.33429194,149.37,149.32,9.63931695]
[1745510328227,30.41429194,149.37,149.32,16.33611119]
[1745510329106,9.78147852,149.36,149.31,6.6972797]
[1745510329316,9.78147852,149.36,149.31,16.33659665]
[1745510329626,9.63931695,149.34,149.3,0.063]
[1745510329828,16.33559525,149.34,149.3,0.063]
[1745510332499,16.47732582,149.35,149.3,16.40020291]
[1745510332718,16.47732582,149.35,149.31,9.63931695]
[1745510333312,16.47732582,149.35,149.3,16.40020291]
[1745510333530,16.47732582,149.35,149.3,6.76088596]
[1745510333915,16.47732582,149.35,149.3,16.40020291]
[1745510335199,16.47732582,149.35,149.31,9.63931695]
[1745510338829,30.55732582,149.35,149.31,9.63931695]
[1745510339431,30.55732582,149.35,149.3,9.70231695]
[1745510339621,0.14216157,149.33,149.3,9.70231695]
[1745510342354,16.4781394,149.33,149.3,0.063]
[1745510342513,9.78147852,149.33,149.3,0.063]
[1745510343014,0.14216157,149.33,149.3,0.063]
[1745510343949,0.14216157,149.33,149.3,9.70231695]
[1745510344852,23.71931695,149.35,149.31,9.63931695]
[1745510345131,0.14216157,149.34,149.32,9.63931695]
[1745510345335,0.14216157,149.34,149.31,9.63931695]
[1745510345513,9.63931695,149.33,149.3,0.063]
[1745510345717,0.14216157,149.31,149.3,0.063]
[1745510345919,16.47895357,149.31,149.3,0.063]
[1745510346331,0.14216157,149.31,149.3,0.063]
[1745510346822,6.83963662,149.31,149.3,0.063]
[1745510347830,0.14216157,149.31,149.3,0.063]
[1745510348340,54.28896581,149.34,149.3,0.063]
[1745510348570,6.69619106,149.34,149.3,9.70231695]
[1745510348844,0.14216157,149.33,149.3,9.70231695]
[1745510349144,16.33550801,149.34,149.3,9.70231695]
[1745510349745,0.14216157,149.33,149.3,9.70231695]
[1745510350049,9.78147852,149.33,149.3,0.063]
[1745510351722,0.14216157,149.31,149.3,0.063]
[1745510352866,9.78147852,149.31,149.3,0.063]
[1745510353160,0.14216157,149.31,149.3,0.063]
[1745510356568,35.12860243,149.31,149.3,0.063]
[1745510357937,0.14216157,149.31,149.3,0.063]
[1745510358962,6.83963662,149.31,149.3,0.063]
[1745510359566,16.47895357,149.31,149.3,0.063]
[1745510361274,35.12860243,149.31,149.3,0.063]
[1745510365786,73.68587023,149.31,149.3,0.063]
[1745510366090,99.68587023,149.31,149.3,0.063]
[1745510367781,99.68587023,149.31,149.29,0.063]
[1745510367782,18.79181043,149.3,149.29,1e-08]
[1745510367949,42.51112738,149.3,149.29,1e-08]
[1745510369180,49.20905102,149.3,149.29,1e-08]
[1745510371156,52.53993446,149.3,149.29,1e-08]
[1745510373683,49.18905102,149.3,149.29,1e-08]
[1745510373852,75.04688945,149.3,149.29,1e-08]
[1745510374056,49.04688945,149.3,149.29,1e-08]
[1745510374277,75.04688945,149.3,149.29,1e-08]
[1745510374473,75.18905102,149.3,149.29,1e-08]
[1745510375560,23.43554728,149.35,149.29,9.63931696]
[1745510375785,28.28896581,149.34,149.3,9.63931695]
[1745510375986,44.64964886,149.34,149.3,9.63931695]
[1745510376285,54.28896581,149.34,149.3,9.63931695]
[1745510376771,0.14216157,149.33,149.3,9.63931695]
[1745510377383,9.78147852,149.33,149.29,1.54790001]
[1745510377758,9.78147852,149.33,149.29,11.18721696]
[1745510377958,0.14216157,149.33,149.29,11.18721696]
[1745510378160,0.14216157,149.33,149.3,9.63931695]
[1745510378383,0.14216157,149.33,149.29,17.88558524]
[1745510378622,26.0,149.34,149.3,9.63931695]
[1745510378885,0.14216157,149.33,149.3,9.63931695]
[1745510379060,26.0,149.34,149.3,9.63931695]
[1745510379255,42.33545518,149.34,149.29,17.88558524]
[1745510379483,0.14216157,149.33,149.29,11.18721696]
[1745510379669,0.14216157,149.33,149.29,17.88556402]
[1745510380876,26.0,149.34,149.31,9.63931695]
[1745510382359,0.14216157,149.33,149.3,9.63931695]
[1745510382557,0.14216157,149.33,149.29,8.24624707]
[1745510382558,14.06,149.35,149.32,9.63931695]
[1745510382786,0.14216157,149.34,149.32,9.63931695]
[1745510383488,14.06,149.35,149.33,9.63931695]
[1745510383685,14.06,149.35,149.32,6.69695076]
[1745510383686,14.06,149.35,149.34,9.63931695]
[1745510384266,68.34896581,149.39,149.34,9.63931695]
[1745510384472,68.34896581,149.39,149.32,6.69695076]
[1745510384473,9.63931695,149.38,149.33,9.63931695]
[1745510384861,0.14216157,149.37,149.33,16.33575393]
[1745510385058,16.33373061,149.38,149.33,16.33575393]